[Event "28th Bosnjaci Open 2024"]
[Site "Bosnjaci"]
[Date "2024.01.04"]
[Round "3.6"]
[White "Plenkovic, Zdenko"]
[Black "Vujnovic, Patricija"]
[Result "1-0"]
[ECO "D02"]
[WhiteElo "2335"]
[BlackElo "2104"]
[Annotator "RC"]
[PlyCount "101"]
[EventDate "2024.01.02"]
[EventType "swiss"]
[EventCountry "CRO"]
[SourceTitle "playchess.com"]
[Source "ChessBase"]
[SourceQuality "1"]
[TimeControl "5400+30"]

1. g3 {[%emt 1:31:00]} d5 {[%emt 0:02:13]} 2. Nf3 {[%emt 0:00:00]} Nc6 {[%emt 0:02:29]} 3. d4 {[%emt 0:00:00]} Bf5 {[%emt 0:02:42]} 4. c3 {[%emt 0:00:00]} e6 {[%emt 0:01:42]} 5. Bg2 {[%emt 0:00:00]} Nf6 {[%emt 0:00:40]} 6. Nbd2 {[%emt 0:00:00]} h6 {[%emt 0:01:35]} 7. O-O {[%emt 0:00:00]} Bd6 {[%emt 0:03:51]} 8. b4 {[%emt 0:00:00]} Ne4 {[%emt 0:02:17]} 9. Qb3 {[%emt 0:00:00]} a5 {[%emt 0:07:01]} 10. a3 {[%emt 0:00:00]} axb4 {[%emt 0:18:45]} 11. cxb4 {[%emt 0:00:00]} Nxb4 {[%emt 0:05:02]} 12. Nh4 {[%emt 0:00:00]} Bh7 {[%emt 0:11:27]} 13. Qb2 {[%emt 0:00:00]} Nxd2 {[%emt 0:05:01]} 14. Bxd2 {[%emt 0:00:00]} Nc2 {[%emt 0:02:39]} 15. Ra2 {[%emt 0:00:00]} Rxa3 {[%emt 0:01:53]} 16. e4 {[%emt 0:00:00]} dxe4 {[%emt 0:18:26]} 17. d5 {[%emt 0:00:00]} Rxa2 {[%emt 0:05:43]} 18. Qxa2 {[%emt 0:00:00]} exd5 {[%emt 0:02:07]} 19. Qxc2 {[%emt 0:00:00]} Be7 {[%emt 0:03:51]} 20. Qb2 {[%emt 0:00:36]} O-O {[%emt 0:00:05]} 21. Qxb7 {[%emt 0:04:37]} Bxh4 {[%emt 0:00:04]} 22. gxh4 {[%emt 0:00:09]} c5 {[%emt 0:01:19]} 23. Qc6 {[%emt 0:01:18]} Qxh4 {[%emt 0:00:03]} 24. Qxc5 {[%emt 0:00:12]} Qh5 {[%emt 0:00:41]} 25. Qd6 {[%emt 0:00:46]} Re8 {[%emt 0:00:43]} 26. Bf4 {[%emt 0:00:45]} Bg6 {[%emt 0:00:23]} 27. Rc1 {[%emt 0:01:49]} Kh7 {[%emt 0:00:10]} 28. h3 {[%emt 0:01:03]} Re6 {[%emt 0:01:04]} 29. Qd8 {[%emt 0:01:12]} f6 {[%emt 0:00:03]} 30. Rc7 {[%emt 0:00:31]} Re8 {[%emt 0:00:45]} 31. Qd7 {[%emt 0:00:04]} Rg8 {[%emt 0:00:07]} 32. Kh2 {[%emt 0:00:36]} Qf5 {[%emt 0:00:49]} 33. Bg3 {[%emt 0:01:02]} h5 {[%emt 0:00:39]} 34. h4 {[%emt 0:00:36]} Qxd7 {[%emt 0:00:33]} 35. Rxd7 {[%emt 0:00:04]} Re8 {[%emt 0:00:27]} 36. Bf4 {[%emt 0:00:20]} Rc8 {[%emt 0:00:38]} 37. Rxd5 {[%emt 0:00:07]} Rc2 {[%emt 0:00:20]} 38. Be3 {[%emt 0:00:06]} Rc7 {[%emt 0:00:31]} 39. Kg3 {[%emt 0:00:14]} Re7 {[%emt 0:00:33]} 40. Kf4 {[%emt 0:00:08]} Re8 {[%emt 0:00:33]} 41. Rc5 {[%emt 0:00:49]} Re7 {[%emt 0:00:27]} 42. Rc4 {[%emt 0:00:55]} Re5 {[%emt 0:00:29]} 43. Bh3 {[%emt 0:02:20]} Rb5 {[%emt 0:00:31]} 44. Rc5 {[%emt 0:00:34]} Rb4 {[%emt 0:00:34]} 45. Bg2 {[%emt 0:00:31]} Kg8 {[%emt 0:00:30]} 46. Rd5 {[%emt 0:00:08]} Kf7 {[%emt 0:00:29]} 47. Rd7+ {[%emt 0:00:14]} Kg8 {[%emt 0:00:23]} 48. Bh3 {[%emt 0:00:36]} Rb5 {[%emt 0:00:28]} 49. Be6+ {[%emt 0:00:15]} Kf8 {[%emt 0:00:24]} 50. Rc7 {[%emt 0:00:18]} Ra5 {[%emt 0:00:42]} 51. Bc5+ {[%emt 0:00:13]} 1-0

[Event "28th Bosnjaci Open 2024"]
[Site "Bosnjaci"]
[Date "2024.01.04"]
[Round "3.7"]
[White "Hadzovic, Amir"]
[Black "Matic, Zeljko"]
[Result "1-0"]
[ECO "B01"]
[WhiteElo "2307"]
[BlackElo "2077"]
[Annotator "RC"]
[PlyCount "69"]
[EventDate "2024.01.02"]
[EventType "swiss"]
[EventCountry "CRO"]
[SourceTitle "playchess.com"]
[Source "ChessBase"]
[SourceQuality "1"]
[TimeControl "5400+30"]

1. e4 {[%emt 0:00:05]} d5 {[%emt 0:00:38]} 2. exd5 {[%emt 0:00:33]} Qxd5 {[%emt 0:00:08]} 3. Nc3 {[%emt 0:00:34]} Qd6 {[%emt 0:00:22]} 4. d4 {[%emt 0:00:08]} Nf6 {[%emt 0:00:05]} 5. Nf3 {[%emt 0:00:24]} a6 {[%emt 0:00:38]} 6. g3 {[%emt 0:00:18]} Bg4 {[%emt 0:00:26]} 7. Bg2 {[%emt 0:00:10]} Nc6 {[%emt 0:00:14]} 8. O-O {[%emt 0:00:56]} O-O-O {[%emt 0:00:15]} 9. d5 {[%emt 0:08:51]} Nb4 {[%emt 0:40:10]} 10. Bf4 {[%emt 0:04:55]} Qc5 {[%emt 0:00:13]} 11. Be3 {[%emt 0:01:29]} Qc4 {[%emt 0:10:39]} 12. h3 {[%emt 0:35:40]} Nbxd5 {[%emt 0:09:20]} 13. Nxd5 {[%emt 0:16:04]} Nxd5 {[%emt 0:00:42]} 14. b3 {[%emt 0:02:28]} Qc3 {[%emt 0:12:30]} 15. Bd2 {[%emt 0:05:43]} Bxf3 {[%emt 0:00:12]} 16. Bxf3 {[%emt 0:00:07]} Qf6 {[%emt 0:01:58]} 17. Bg2 {[%emt 0:00:52]} e6 {[%emt 0:01:10]} 18. c4 {[%emt 0:00:54]} Nb6 {[%emt 0:00:34]} 19. Qe2 {[%emt 0:04:09]} Bc5 {[%emt 0:02:47]} 20. b4 {[%emt 0:00:40]} Bd4 {[%emt 0:00:38]} 21. Rac1 {[%emt 0:00:21]} Qf5 {[%emt 0:02:48]} 22. g4 {[%emt 0:02:22]} Qe5 {[%emt 0:02:50]} 23. Qf3 {[%emt 0:00:07]} c6 {[%emt 0:00:27]} 24. b5 {[%emt 0:01:00]} Qf6 {[%emt 0:03:22]} 25. Qb3 {[%emt 0:03:48]} Bc5 {[%emt 0:01:15]} 26. Ba5 {[%emt 0:01:52]} Qd4 {[%emt 0:07:30]} 27. bxc6 {[%emt 0:01:22]} bxc6 {[%emt 0:01:12]} 28. Rb1 {[%emt 0:02:58]} Kc7 {[%emt 0:00:41]} 29. Qf3 {[%emt 0:00:09]} Rd6 {[%emt 0:00:41]} 30. Bc3 {[%emt 0:03:08]} Qd3 {[%emt 0:00:13]} 31. Qxf7+ {[%emt 0:00:25]} Rd7 {[%emt 0:00:15]} 32. Qxe6 {[%emt 0:00:53]} Bd6 {[%emt 0:01:02]} 33. Ba5 {[%emt 0:01:07]} Rb8 {[%emt 0:00:29]} 34. c5 {[%emt 0:00:22]} Bxc5 {[%emt 0:00:32]} 35. Qxc6+ {[%emt 0:00:10]} 1-0

[Event "28th Bosnjaci Open 2024"]
[Site "Bosnjaci"]
[Date "2024.01.04"]
[Round "3.8"]
[White "Damjanovic, Stjepan"]
[Black "Sajin, Mirko"]
[Result "0-1"]
[ECO "B36"]
[WhiteElo "2149"]
[BlackElo "2299"]
[Annotator "RC"]
[PlyCount "60"]
[EventDate "2024.01.02"]
[EventType "swiss"]
[EventCountry "CRO"]
[SourceTitle "playchess.com"]
[Source "ChessBase"]
[SourceQuality "1"]
[TimeControl "5400+30"]

1. e4 {[%emt 0:00:04]} c5 {[%emt 0:00:30]} 2. Nf3 {[%emt 0:00:37]} g6 {[%emt 0:00:19]} 3. d4 {[%emt 0:00:47]} cxd4 {[%emt 0:00:31]} 4. Nxd4 {[%emt 0:00:06]} Nc6 {[%emt 0:00:06]} 5. c4 {[%emt 0:00:40]} Nf6 {[%emt 0:00:12]} 6. Nc3 {[%emt 0:00:10]} d6 {[%emt 0:00:08]} 7. Be2 {[%emt 0:00:08]} Nxd4 {[%emt 0:00:33]} 8. Qxd4 {[%emt 0:00:09]} Bg7 {[%emt 0:00:07]} 9. Be3 {[%emt 0:00:15]} O-O {[%emt 0:00:20]} 10. Qd2 {[%emt 0:00:33]} a5 {[%emt 0:01:38]} 11. O-O {[%emt 0:03:07]} a4 {[%emt 0:00:35]} 12. Rac1 {[%emt 0:01:46]} Qa5 {[%emt 0:02:36]} 13. Rfd1 {[%emt 0:02:39]} Be6 {[%emt 0:04:41]} 14. f3 {[%emt 0:03:13]} Rfc8 {[%emt 0:06:23]} 15. Nb5 {[%emt 0:17:43]} Nd7 {[%emt 0:08:04]} 16. f4 {[%emt 0:08:50]} Nc5 {[%emt 0:15:10]} 17. Qc2 {[%emt 0:03:37]} Bd7 {[%emt 0:06:03]} 18. Nd4 {[%emt 0:15:18]} Ne6 {[%emt 0:06:24]} 19. Nf3 {[%emt 0:03:11]} Bc6 {[%emt 0:01:33]} 20. Rf1 {[%emt 0:11:39]} Nc5 {[%emt 0:14:22]} 21. Nd2 {[%emt 0:01:28]} Qb4 {[%emt 0:01:27]} 22. Rb1 {[%emt 0:02:11]} a3 {[%emt 0:04:31]} 23. Bg4 {[%emt 0:04:13]} Rd8 {[%emt 0:02:14]} 24. f5 {[%emt 0:05:22]} axb2 {[%emt 0:02:50]} 25. Bg5 {[%emt 0:00:08]} Rxa2 {[%emt 0:02:58]} 26. Bxe7 {[%emt 0:03:59]} Ba4 {[%emt 0:04:43]} 27. Nb3 {[%emt 0:02:56]} Bxb3 {[%emt 0:02:10]} 28. Qf2 {[%emt 0:00:10]} Qxc4 {[%emt 0:01:37]} 29. fxg6 {[%emt 0:00:13]} hxg6 {[%emt 0:00:19]} 30. Kh1 {[%emt 0:00:44]} Re8 {[%emt 0:00:31]} 0-1

[Event "28th Bosnjaci Open 2024"]
[Site "Bosnjaci"]
[Date "2024.01.04"]
[Round "3.9"]
[White "Alimpic, Aleksa"]
[Black "Pehar, Borna"]
[Result "1-0"]
[ECO "A45"]
[WhiteElo "2282"]
[BlackElo "1906"]
[Annotator "RC"]
[PlyCount "75"]
[EventDate "2024.01.02"]
[EventType "swiss"]
[EventCountry "CRO"]
[SourceTitle "playchess.com"]
[Source "ChessBase"]
[SourceQuality "1"]
[TimeControl "5400+30"]

1. d4 {[%emt 0:00:03]} Nf6 {[%emt 0:00:28]} 2. Bg5 {[%emt 0:00:21]} Ne4 {[%emt 0:00:09]} 3. Bf4 {[%emt 0:00:28]} d5 {[%emt 0:00:17]} 4. e3 {[%emt 0:00:05]} c5 {[%emt 0:00:14]} 5. Nd2 {[%emt 0:00:13]} Nxd2 {[%emt 0:01:55]} 6. Qxd2 {[%emt 0:00:05]} cxd4 {[%emt 0:00:35]} 7. exd4 {[%emt 0:00:06]} Nc6 {[%emt 0:02:30]} 8. Nf3 {[%emt 0:00:15]} Bf5 {[%emt 0:00:09]} 9. Ne5 {[%emt 0:00:12]} e6 {[%emt 0:04:42]} 10. g4 {[%emt 0:01:51]} Bg6 {[%emt 0:05:21]} 11. Bb5 {[%emt 0:00:21]} Qb6 {[%emt 0:02:45]} 12. Bxc6+ {[%emt 0:00:52]} bxc6 {[%emt 0:00:09]} 13. O-O-O {[%emt 0:00:12]} Bb4 {[%emt 0:04:56]} 14. c3 {[%emt 0:02:16]} Be7 {[%emt 0:01:14]} 15. h4 {[%emt 0:01:18]} f6 {[%emt 0:01:59]} 16. Nxg6 {[%emt 0:00:11]} hxg6 {[%emt 0:00:04]} 17. Qc2 {[%emt 0:05:50]} f5 {[%emt 0:16:10]} 18. h5 {[%emt 0:06:56]} gxh5 {[%emt 0:02:54]} 19. gxf5 {[%emt 0:00:30]} Rf8 {[%emt 0:01:53]} 20. Rxh5 {[%emt 0:01:07]} g6 {[%emt 0:04:42]} 21. fxg6 {[%emt 0:06:31]} Rxf4 {[%emt 0:02:53]} 22. Rh8+ {[%emt 0:00:07]} Rf8 {[%emt 0:06:23]} 23. g7 {[%emt 0:00:19]} O-O-O {[%emt 0:00:03]} 24. gxf8=Q {[%emt 0:00:58]} Rxf8 {[%emt 0:02:36]} 25. Rxf8+ {[%emt 0:00:11]} Bxf8 {[%emt 0:00:01]} 26. Qg6 {[%emt 0:02:03]} Kd7 {[%emt 0:00:22]} 27. Re1 {[%emt 0:00:24]} c5 {[%emt 0:00:07]} 28. Qf7+ {[%emt 0:00:17]} Be7 {[%emt 0:00:01]} 29. dxc5 {[%emt 0:00:20]} Qc6 {[%emt 0:00:01]} 30. f4 {[%emt 0:01:12]} Kd8 {[%emt 0:01:02]} 31. Qxe6 {[%emt 0:00:38]} Qxc5 {[%emt 0:00:00]} 32. Qxe7+ {[%emt 0:01:01]} Qxe7 {[%emt 0:00:03]} 33. Rxe7 {[%emt 0:00:05]} Kxe7 {[%emt 0:00:07]} 34. Kd2 {[%emt 0:00:02]} Ke6 {[%emt 0:01:08]} 35. Ke3 {[%emt 0:00:05]} Kf5 {[%emt 0:00:03]} 36. Kd4 {[%emt 0:00:03]} Ke6 {[%emt 0:00:03]} 37. f5+ {[%emt 0:00:13]} Kd6 {[%emt 0:00:03]} 38. b4 {[%emt 0:00:05]} 1-0

[Event "28th Bosnjaci Open 2024"]
[Site "Bosnjaci"]
[Date "2024.01.04"]
[Round "3.11"]
[White "Simunic, Krunoslav"]
[Black "Milovic, Jovan"]
[Result "0-1"]
[ECO "A43"]
[WhiteElo "1906"]
[BlackElo "2223"]
[Annotator "RC"]
[PlyCount "64"]
[EventDate "2024.01.02"]
[EventType "swiss"]
[EventCountry "CRO"]
[SourceTitle "playchess.com"]
[Source "ChessBase"]
[SourceQuality "1"]
[TimeControl "5400+30"]

1. d4 {[%emt 0:00:15]} c5 {[%emt 0:00:40]} 2. d5 {[%emt 0:01:18]} e6 {[%emt 0:00:06]} 3. c4 {[%emt 0:00:34]} Bd6 {[%emt 0:00:06]} 4. Nc3 {[%emt 0:00:56]} Be5 {[%emt 0:01:35]} 5. Qc2 {[%emt 0:03:20]} d6 {[%emt 0:00:42]} 6. Nf3 {[%emt 0:02:29]} Bxc3+ {[%emt 0:00:17]} 7. Qxc3 {[%emt 0:00:22]} Nf6 {[%emt 0:03:04]} 8. Bg5 {[%emt 0:02:49]} e5 {[%emt 0:01:17]} 9. h3 {[%emt 0:18:39]} h6 {[%emt 0:02:09]} 10. Bxf6 {[%emt 0:04:09]} Qxf6 {[%emt 0:00:05]} 11. Nd2 {[%emt 0:00:40]} Qg6 {[%emt 0:02:24]} 12. e3 {[%emt 0:05:01]} Na6 {[%emt 0:09:59]} 13. a3 {[%emt 0:01:40]} f5 {[%emt 0:01:33]} 14. b4 {[%emt 0:04:28]} O-O {[%emt 0:00:38]} 15. Nb3 {[%emt 0:02:14]} cxb4 {[%emt 0:03:29]} 16. axb4 {[%emt 0:00:16]} f4 {[%emt 0:00:08]} 17. b5 {[%emt 0:07:22]} Nc7 {[%emt 0:09:33]} 18. O-O-O {[%emt 0:04:08]} b6 {[%emt 0:02:53]} 19. exf4 {[%emt 0:02:46]} Rxf4 {[%emt 0:00:16]} 20. Qg3 {[%emt 0:00:39]} Qf6 {[%emt 0:00:33]} 21. f3 {[%emt 0:03:50]} Bf5 {[%emt 0:01:51]} 22. Qf2 {[%emt 0:01:06]} Bg6 {[%emt 0:02:11]} 23. Be2 {[%emt 0:02:28]} a5 {[%emt 0:05:13]} 24. g3 {[%emt 0:05:12]} a4 {[%emt 0:00:30]} 25. Na1 {[%emt 0:00:18]} Rd4 {[%emt 0:07:19]} 26. Nc2 {[%emt 0:02:30]} Qf5 {[%emt 0:01:24]} 27. Nxd4 {[%emt 0:00:37]} Qb1+ {[%emt 0:00:07]} 28. Kd2 {[%emt 0:00:01]} Qb4+ {[%emt 0:00:16]} 29. Ke3 {[%emt 0:01:27]} Qc3+ {[%emt 0:00:57]} 30. Bd3 {[%emt 0:00:22]} exd4+ {[%emt 0:00:33]} 31. Ke2 {[%emt 0:01:20]} Bxd3+ {[%emt 0:00:17]} 32. Rxd3 {[%emt 0:00:01]} Re8+ {[%emt 0:00:09]} 0-1

[Event "28th Bosnjaci Open 2024"]
[Site "Bosnjaci"]
[Date "2024.01.04"]
[Round "3.12"]
[White "Jocev, Milan"]
[Black "Kejzar, Petra"]
[Result "1/2-1/2"]
[ECO "D00"]
[WhiteElo "2376"]
[BlackElo "2025"]
[Annotator "RC"]
[PlyCount "118"]
[EventDate "2024.01.02"]
[EventType "swiss"]
[EventCountry "CRO"]
[SourceTitle "playchess.com"]
[Source "ChessBase"]
[SourceQuality "1"]
[TimeControl "5400+30"]

1. d4 {[%emt 0:00:03]} Nf6 {[%emt 0:00:06]} 2. Nc3 {[%emt 0:00:07]} d5 {[%emt 0:00:07]} 3. Bf4 {[%emt 0:00:09]} a6 {[%emt 0:00:24]} 4. e3 {[%emt 0:00:20]} b5 {[%emt 0:00:37]} 5. Nf3 {[%emt 0:00:53]} Bb7 {[%emt 0:00:37]} 6. Ne5 {[%emt 0:01:18]} Nbd7 {[%emt 0:02:59]} 7. Qf3 {[%emt 0:03:54]} e6 {[%emt 0:02:44]} 8. Bd3 {[%emt 0:03:13]} c5 {[%emt 0:05:57]} 9. O-O {[%emt 0:05:25]} c4 {[%emt 0:02:19]} 10. Be2 {[%emt 0:00:29]} Be7 {[%emt 0:04:16]} 11. b3 {[%emt 0:04:15]} Qa5 {[%emt 0:12:37]} 12. Nd1 {[%emt 0:07:40]} Nxe5 {[%emt 0:23:35]} 13. Bxe5 {[%emt 0:00:43]} Rc8 {[%emt 0:02:00]} 14. a3 {[%emt 0:07:22]} cxb3 {[%emt 0:03:52]} 15. cxb3 {[%emt 0:00:41]} Qd2 {[%emt 0:00:23]} 16. a4 {[%emt 0:06:00]} b4 {[%emt 0:02:00]} 17. Bxf6 {[%emt 0:03:55]} Bxf6 {[%emt 0:00:48]} 18. Bc4 {[%emt 0:00:29]} Rc7 {[%emt 0:08:46]} 19. Qe2 {[%emt 0:01:01]} Qxe2 {[%emt 0:00:39]} 20. Bxe2 {[%emt 0:00:06]} Ke7 {[%emt 0:01:55]} 21. Bd3 {[%emt 0:03:46]} e5 {[%emt 0:01:18]} 22. dxe5 {[%emt 0:01:42]} Bxe5 {[%emt 0:00:01]} 23. Rb1 {[%emt 0:02:17]} Rhc8 {[%emt 0:01:07]} 24. Bf5 {[%emt 0:00:31]} Rd8 {[%emt 0:00:27]} 25. Re1 {[%emt 0:06:54]} g6 {[%emt 0:01:18]} 26. Bd3 {[%emt 0:01:20]} f5 {[%emt 0:00:23]} 27. f4 {[%emt 0:01:25]} Bd6 {[%emt 0:01:25]} 28. Nf2 {[%emt 0:00:12]} Rc3 {[%emt 0:00:54]} 29. Kf1 {[%emt 0:01:06]} Kf8 {[%emt 0:00:58]} 30. g3 {[%emt 0:00:44]} Re8 {[%emt 0:00:24]} 31. Rec1 {[%emt 0:04:34]} Rxc1+ {[%emt 0:03:52]} 32. Rxc1 {[%emt 0:00:04]} Rxe3 {[%emt 0:00:09]} 33. Re1 {[%emt 0:00:16]} Rxe1+ {[%emt 0:02:45]} 34. Kxe1 {[%emt 0:00:05]} Bc5 {[%emt 0:00:49]} 35. Nd1 {[%emt 0:01:35]} a5 {[%emt 0:01:03]} 36. Ke2 {[%emt 0:00:44]} Bc8 {[%emt 0:00:37]} 37. Ne3 {[%emt 0:02:13]} Be6 {[%emt 0:00:08]} 38. Nf1 {[%emt 0:00:34]} Ke7 {[%emt 0:00:18]} 39. Nd2 {[%emt 0:00:21]} Bd4 {[%emt 0:01:14]} 40. Nf3 {[%emt 0:04:22]} Bc3 {[%emt 0:00:08]} 41. Bc2 {[%emt 0:00:57]} Kd6 {[%emt 0:00:33]} 42. Bd3 {[%emt 0:01:22]} Kc5 {[%emt 0:01:30]} 43. Bc2 {[%emt 0:00:12]} Bf6 {[%emt 0:00:51]} 44. Bd3 {[%emt 0:00:43]} d4 {[%emt 0:02:06]} 45. Nd2 {[%emt 0:00:35]} Bd8 {[%emt 0:01:34]} 46. Bc4 {[%emt 0:01:27]} Bd5 {[%emt 0:00:31]} 47. Bxd5 {[%emt 0:04:01]} Kxd5 {[%emt 0:00:02]} 48. Nc4 {[%emt 0:00:29]} Ke4 {[%emt 0:04:08]} 49. Nd2+ {[%emt 0:00:25]} Kd5 {[%emt 0:00:01]} 50. Nc4 {[%emt 0:00:10]} g5 {[%emt 0:01:30]} 51. fxg5 {[%emt 0:00:29]} Bxg5 {[%emt 0:00:02]} 52. Nxa5 {[%emt 0:00:26]} Ke4 {[%emt 0:00:07]} 53. Nc6 {[%emt 0:00:09]} d3+ {[%emt 0:00:15]} 54. Kd1 {[%emt 0:00:36]} f4 {[%emt 0:01:35]} 55. gxf4 {[%emt 0:00:24]} Bxf4 {[%emt 0:00:01]} 56. h3 {[%emt 0:01:07]} Bd6 {[%emt 0:00:38]} 57. Kd2 {[%emt 0:01:08]} Bf4+ {[%emt 0:00:35]} 58. Kd1 {[%emt 0:00:04]} Bd6 {[%emt 0:00:04]} 59. Kd2 {[%emt 0:00:03]} Bf4+ {[%emt 0:00:04]} 1/2-1/2

[Event "28th Bosnjaci Open 2024"]
[Site "Bosnjaci"]
[Date "2024.01.04"]
[Round "3.13"]
[White "Valkovic, Kristian"]
[Black "Zufic, Miroslav"]
[Result "0-1"]
[ECO "A46"]
[WhiteElo "2026"]
[BlackElo "2354"]
[Annotator "RC"]
[PlyCount "60"]
[EventDate "2024.01.02"]
[EventType "swiss"]
[EventCountry "CRO"]
[SourceTitle "playchess.com"]
[Source "ChessBase"]
[SourceQuality "1"]
[TimeControl "5400+30"]

1. d4 {[%emt 0:03:37]} Nf6 {[%emt 0:00:11]} 2. Nf3 {[%emt 0:00:06]} c5 {[%emt 0:00:18]} 3. c3 {[%emt 0:00:08]} Qa5 {[%emt 0:00:20]} 4. dxc5 {[%emt 0:03:03]} Qxc5 {[%emt 0:00:23]} 5. g3 {[%emt 0:02:29]} b6 {[%emt 0:03:42]} 6. Bg2 {[%emt 0:00:09]} Bb7 {[%emt 0:00:07]} 7. O-O {[%emt 0:00:07]} d6 {[%emt 0:02:19]} 8. Nbd2 {[%emt 0:10:15]} Nbd7 {[%emt 0:04:37]} 9. Qc2 {[%emt 0:03:55]} g6 {[%emt 0:11:53]} 10. e4 {[%emt 0:05:15]} Bg7 {[%emt 0:01:45]} 11. Re1 {[%emt 0:02:49]} O-O {[%emt 0:03:26]} 12. Nf1 {[%emt 0:09:45]} Rac8 {[%emt 0:10:05]} 13. h3 {[%emt 0:04:08]} Qc7 {[%emt 0:07:47]} 14. N3d2 {[%emt 0:13:16]} b5 {[%emt 0:13:53]} 15. Ne3 {[%emt 0:06:08]} e6 {[%emt 0:02:22]} 16. Qd1 {[%emt 0:11:59]} Nc5 {[%emt 0:03:47]} 17. Nc2 {[%emt 0:01:17]} Nd3 {[%emt 0:02:58]} 18. Re3 {[%emt 0:03:02]} Nxc1 {[%emt 0:02:03]} 19. Rxc1 {[%emt 0:00:06]} Bh6 {[%emt 0:04:18]} 20. f4 {[%emt 0:01:45]} e5 {[%emt 0:01:00]} 21. Qf3 {[%emt 0:01:20]} d5 {[%emt 0:03:59]} 22. fxe5 {[%emt 0:07:05]} Nxe4 {[%emt 0:02:09]} 23. Nxe4 {[%emt 0:02:00]} dxe4 {[%emt 0:00:06]} 24. Qf6 {[%emt 0:00:28]} Rce8 {[%emt 0:08:07]} 25. Rd1 {[%emt 0:00:59]} Rxe5 {[%emt 0:01:48]} 26. Re2 {[%emt 0:01:07]} Re6 {[%emt 0:03:37]} 27. Qh4 {[%emt 0:00:45]} Qc5+ {[%emt 0:00:44]} 28. Kh2 {[%emt 0:01:39]} Bg5 {[%emt 0:00:15]} 29. Qg4 {[%emt 0:00:08]} h5 {[%emt 0:00:24]} 30. b4 {[%emt 0:00:27]} Qe5 {[%emt 0:00:25]} 0-1

[Event "28th Bosnjaci Open 2024"]
[Site "Bosnjaci"]
[Date "2024.01.04"]
[Round "3.14"]
[White "Culum, Sanjin"]
[Black "Pestek, Elvis"]
[Result "1-0"]
[ECO "C45"]
[WhiteElo "2349"]
[BlackElo "1983"]
[Annotator "RC"]
[PlyCount "77"]
[EventDate "2024.01.02"]
[EventType "swiss"]
[EventCountry "CRO"]
[SourceTitle "playchess.com"]
[Source "ChessBase"]
[SourceQuality "1"]
[TimeControl "5400+30"]

1. e4 {[%emt 0:00:35]} e5 {[%emt 0:01:37]} 2. Nf3 {[%emt 0:00:07]} Nc6 {[%emt 0:00:18]} 3. d4 {[%emt 0:06:07]} exd4 {[%emt 0:04:52]} 4. Nxd4 {[%emt 1:25:41]} Bc5 {[%emt 0:07:39]} 5. Nb3 {[%emt 0:00:00]} Bb6 {[%emt 0:00:08]} 6. Nc3 {[%emt 0:00:00]} d6 {[%emt 0:04:35]} 7. Bf4 {[%emt 0:00:00]} Be6 {[%emt 0:03:14]} 8. Qd2 {[%emt 0:00:00]} Nge7 {[%emt 0:04:31]} 9. O-O-O {[%emt 0:00:00]} Ng6 {[%emt 0:08:07]} 10. Bg5 {[%emt 0:00:00]} f6 {[%emt 0:05:45]} 11. Be3 {[%emt 0:00:00]} Qd7 {[%emt 0:16:44]} 12. f4 {[%emt 0:00:00]} Bxb3 {[%emt 0:24:43]} 13. axb3 {[%emt 0:00:00]} Bxe3 {[%emt 0:00:59]} 14. Qxe3 {[%emt 0:00:00]} O-O-O {[%emt 0:01:08]} 15. Be2 {[%emt 0:00:00]} Kb8 {[%emt 0:01:32]} 16. Qg3 {[%emt 0:00:00]} Nb4 {[%emt 0:03:39]} 17. h4 {[%emt 0:00:00]} a6 {[%emt 0:00:46]} 18. h5 {[%emt 0:00:00]} Nf8 {[%emt 0:00:50]} 19. Rd2 {[%emt 0:00:00]} Qe7 {[%emt 0:00:52]} 20. Re1 {[%emt 0:00:00]} Nd7 {[%emt 0:00:49]} 21. Bf3 {[%emt 0:00:00]} Rhe8 {[%emt 0:00:46]} 22. Rde2 {[%emt 0:00:00]} Qf7 {[%emt 0:01:06]} 23. Kb1 {[%emt 0:00:00]} Rg8 {[%emt 0:01:49]} 24. Nd5 {[%emt 0:00:00]} Nc6 {[%emt 0:00:14]} 25. Rd2 {[%emt 0:00:00]} g5 {[%emt 0:01:35]} 26. hxg6 {[%emt 0:00:00]} hxg6 {[%emt 0:00:10]} 27. Be2 {[%emt 0:00:00]} g5 {[%emt 0:01:44]} 28. Qc3 {[%emt 0:00:00]} Nc5 {[%emt 0:02:07]} 29. Bc4 {[%emt 0:00:00]} Qg7 {[%emt 0:00:20]} 30. b4 {[%emt 0:00:00]} Na4 {[%emt 0:01:26]} 31. Qa3 {[%emt 0:00:00]} b5 {[%emt 0:00:33]} 32. Bb3 {[%emt 0:00:00]} Kb7 {[%emt 0:01:02]} 33. Bxa4 {[%emt 0:00:00]} bxa4 {[%emt 0:00:01]} 34. Qxa4 {[%emt 0:00:00]} Na7 {[%emt 0:01:04]} 35. Qb3 {[%emt 0:00:00]} Rge8 {[%emt 0:00:31]} 36. Qf3 {[%emt 0:00:00]} g4 {[%emt 0:00:32]} 37. Qd3 {[%emt 0:00:00]} c6 {[%emt 0:00:29]} 38. Ne3 {[%emt 0:00:00]} Nb5 {[%emt 0:01:13]} 39. c4 {[%emt 0:00:00]} 1-0

[Event "28th Bosnjaci Open 2024"]
[Site "Bosnjaci"]
[Date "2024.01.04"]
[Round "3.15"]
[White "Jovic, Stevan"]
[Black "Biti, Ozren"]
[Result "0-1"]
[ECO "A41"]
[WhiteElo "1993"]
[BlackElo "2308"]
[Annotator "RC"]
[PlyCount "87"]
[EventDate "2024.01.02"]
[EventType "swiss"]
[EventCountry "CRO"]
[SourceTitle "playchess.com"]
[Source "ChessBase"]
[SourceQuality "1"]
[TimeControl "5400+30"]

1. d4 {[%emt 0:00:05]} d6 {[%emt 0:00:23]} 2. Nf3 {[%emt 0:01:26]} g6 {[%emt 0:00:06]} 3. c4 {[%emt 0:00:10]} Bg7 {[%emt 0:00:21]} 4. Nc3 {[%emt 0:00:38]} e5 {[%emt 0:00:25]} 5. dxe5 {[%emt 0:00:25]} dxe5 {[%emt 0:00:06]} 6. Qxd8+ {[%emt 0:00:15]} Kxd8 {[%emt 0:00:05]} 7. Bg5+ {[%emt 0:03:05]} f6 {[%emt 0:00:37]} 8. O-O-O+ {[%emt 0:00:24]} Ke8 {[%emt 0:02:24]} 9. Bd2 {[%emt 0:03:53]} Be6 {[%emt 0:03:25]} 10. Nb5 {[%emt 0:01:18]} Na6 {[%emt 0:00:46]} 11. e3 {[%emt 0:01:09]} Nh6 {[%emt 0:00:23]} 12. h3 {[%emt 0:00:09]} Nf7 {[%emt 0:00:35]} 13. b3 {[%emt 0:03:50]} c6 {[%emt 0:02:27]} 14. Nc3 {[%emt 0:00:51]} Bf8 {[%emt 0:08:39]} 15. Bd3 {[%emt 0:01:37]} Rd8 {[%emt 0:10:58]} 16. Bc2 {[%emt 0:01:08]} Nb4 {[%emt 0:14:06]} 17. Bb1 {[%emt 0:02:10]} Nd3+ {[%emt 0:03:07]} 18. Bxd3 {[%emt 0:00:13]} Rxd3 {[%emt 0:00:04]} 19. Ne4 {[%emt 0:00:37]} Be7 {[%emt 0:02:53]} 20. Bc3 {[%emt 0:02:32]} f5 {[%emt 0:08:06]} 21. Rxd3 {[%emt 0:01:06]} fxe4 {[%emt 0:00:09]} 22. Nxe5 {[%emt 0:00:18]} exd3 {[%emt 0:01:45]} 23. Nxf7 {[%emt 0:00:06]} Rf8 {[%emt 0:02:30]} 24. Ne5 {[%emt 0:00:31]} Rxf2 {[%emt 0:06:11]} 25. Nxd3 {[%emt 0:00:14]} Ba3+ {[%emt 0:00:49]} 26. Kd1 {[%emt 0:02:49]} Rxa2 {[%emt 0:01:08]} 27. g4 {[%emt 0:04:45]} b5 {[%emt 0:02:41]} 28. Ne5 {[%emt 0:01:06]} Bb4 {[%emt 0:04:23]} 29. Be1 {[%emt 0:01:37]} bxc4 {[%emt 0:01:51]} 30. bxc4 {[%emt 0:01:17]} Bd6 {[%emt 0:01:44]} 31. Bc3 {[%emt 0:03:15]} Bb4 {[%emt 0:06:17]} 32. Be1 {[%emt 0:00:10]} Ra5 {[%emt 0:01:54]} 33. Nd3 {[%emt 0:03:32]} Ra1+ {[%emt 0:00:21]} 34. Kc2 {[%emt 0:00:53]} Bxe1 {[%emt 0:01:07]} 35. Rxe1 {[%emt 0:00:15]} Rxe1 {[%emt 0:00:29]} 36. Nxe1 {[%emt 0:00:02]} Bxc4 {[%emt 0:00:08]} 37. Nf3 {[%emt 0:00:50]} Bd5 {[%emt 0:01:06]} 38. Ne5 {[%emt 0:01:12]} g5 {[%emt 0:03:32]} 39. Kc3 {[%emt 0:00:27]} a5 {[%emt 0:02:14]} 40. Nd3 {[%emt 0:02:04]} Ke7 {[%emt 0:00:54]} 41. Ne1 {[%emt 0:06:47]} Kd6 {[%emt 0:00:57]} 42. Kd3 {[%emt 0:00:26]} Ke5 {[%emt 0:09:24]} 43. Kc3 {[%emt 0:52:23]} Be4 44. Kc4 {[%emt 0:00:30]} 0-1